[Event "5th Baskent University Open 2022"]
[Site "Ankara"]
[Date "2022.07.06"]
[Round "7.17"]
[White "Kocak, Can"]
[Black "Cakiroglu, Metin"]
[Result "1/2-1/2"]
[ECO "B68"]
[WhiteElo "2057"]
[BlackElo "2068"]
[Annotator "TA"]
[PlyCount "127"]
[EventDate "2022.07.02"]
[EventType "swiss"]
[EventCountry "TUR"]
[SourceTitle "playchess.com"]
[Source "ChessBase"]
[SourceQuality "1"]
[TimeControl "5400+30"]

{[%evp 18,127,41,3,0,0,0,0,0,0,0,0,0,0,0,-26,39,0,16,0,0,0,0,0,0,0,0,0,10,10,10,9,4,3,18,12,17,15,23,0,0,0,0,0,0,0,7,0,0,0,0,0,0,0,0,0,0,0,0,0,0,0,0,0,0,0,0,0,0,0,0,0,0,0,0,0,0,0,0,0,0,0,0,0,0,0,0,0,0,0,0,0,0,0,0,0,0,0,0,0,0,0,0,0,0,0,0,0,0,0,0,0]} 1. e4 {[%emt 0:03:00]} c5 {[%emt 0:07:00]} 2. Nf3 {[%emt 0:00:30]} d6 {[%emt 0:00:00]} 3. d4 {[%emt 0:00:30]} cxd4 {[%emt 0:00:00]} 4. Nxd4 {[%emt 0:00:30]} Nf6 {[%emt 0:00:30]} 5. Nc3 {[%emt 0:00:30]} Nc6 {[%emt 0:00:00]} 6. Bg5 {[%emt 0:00:30]} e6 {[%emt 0:00:00]} 7. Qd2 {[%emt 0:01:30]} a6 {[%emt 0:04:30]} 8. O-O-O {[%emt 0:00:30]} Bd7 {[%emt 0:00:00]} 9. Kb1 {[%emt 0:03:30]} Be7 {[%emt 0:00:00]} 10. f4 {[%emt 0:00:00]} b5 {[%emt 0:03:30] B68: Sicilian: Richter-Rauzer: 7...a6 8 0-0-0 Bd7 9 f4 Be7 .} 11. Bxf6 {[%emt 0:01:00]} Bxf6 {[%emt 0:10:30]} 12. Nxc6 {[%emt 0:20:30]} Bxc6 {[%emt 0:00:30]} 13. Qxd6 {[%emt 0:00:30]} Qxd6 {[%emt 0:00:30]} 14. Rxd6 {[%emt 0:00:00]} Rc8 {[%emt 0:00:00]} 15. e5 {[%emt 0:06:00]} Be7 {[%emt 0:00:00]} 16. Rd1 {[%emt 0:00:30]} g5 {[%emt 0:00:30] [#]} (16... Bc5 $11) 17. a4 $146 {[%emt 0:07:30]} ({Predecessor:} 17. fxg5 Bxg5 18. a4 b4 19. Bxa6 Ra8 20. Bb5 Bxb5 21. Nxb5 Rxa4 22. Nd4 Bf4 23. Nc6 {1-0 (62) Melerowicz,D (1825)-Starosciak,S (1921) Sypniewo 2022}) 17... Rb8 {[%emt 0:08:30]} 18. axb5 {[%emt 0:02:30]} axb5 {[%emt 0:02:30]} 19. Bd3 {[%emt 0:03:30]} gxf4 {[%emt 0:02:30]} 20. Be4 {[%emt 0:00:30]} Bxe4 {[%emt 0:11:30]} 21. Nxe4 {[%emt 0:00:00]} b4 {[%emt 0:01:30]} 22. Rhf1 {[%emt 0:09:00]} Rb5 {[%emt 0:01:30]} 23. Nd6+ {[%emt 0:00:30]} Bxd6 {[%emt 0:00:00]} 24. exd6 $11 {[%emt 0:00:30][%mdl 4096] Endgame KRR-KRR} e5 {[%emt 0:08:00]} 25. g3 {[%emt 0:00:00]} fxg3 {[%emt 0:07:30]} 26. hxg3 {[%emt 0:00:00]} O-O {[%emt 0:00:30]} 27. Rf3 {[%emt 0:05:30]} Rd8 {[%emt 0:00:30]} 28. Rb3 {[%emt 0:02:30]} Rb6 {[%emt 0:01:30] The position is equal.} 29. c4 {[%emt 0:00:30] [#] Threatens to win with c5.} Rbxd6 {[%emt 0:00:30]} 30. Rxd6 {[%emt 0:00:30]} Rxd6 {[%emt 0:00:30]} 31. Rxb4 {[%emt 0:00:00] KR-KR} Rd4 {[%emt 0:05:30]} 32. Rb8+ {[%emt 0:08:00]} Kg7 {[%emt 0:00:30]} 33. Rc8 {[%emt 0:00:30]} f5 {[%emt 0:04:30]} 34. b3 {[%emt 0:04:30]} f4 {[%emt 0:04:01]} 35. gxf4 {[%emt 0:00:30]} exf4 {[%emt 0:00:00] [#] White must now prevent ...f3.} 36. Kc2 {[%emt 0:00:30]} f3 {[%emt 0:00:33]} 37. Ra8 {[%emt 0:00:30]} Rf4 {[%emt 0:04:28]} (37... f2 $5 38. Ra1 Rf4 $11) 38. Ra1 $1 {[%emt 0:00:00]} f2 {[%emt 0:01:38]} 39. Rf1 {[%emt 0:00:00]} Kf6 {[%emt 0:01:05]} 40. Kd3 {[%emt 0:00:30] And now Ke3 would win.} Rf3+ {[%emt 0:00:44]} 41. Ke4 {[%emt 0:00:30]} Rxb3 {[%emt 0:00:30]} 42. Rxf2+ {[%emt 0:00:00]} Ke6 {[%emt 0:00:29]} 43. Rh2 {[%emt 0:00:00]} Kd6 {[%emt 0:00:30]} 44. Kd4 {[%emt 0:00:30]} Rg3 {[%emt 0:01:01]} 45. Rh6+ {[%emt 0:00:30]} Rg6 {[%emt 0:00:03]} 46. Rxh7 {[%emt 0:00:30]} Rg4+ {[%emt 0:00:30]} 47. Kc3 {[%emt 0:00:00]} Kc5 {[%emt 0:00:00]} 48. Rh5+ {[%emt 0:00:00]} Kc6 {[%emt 0:00:29]} 49. Kb4 {[%emt 0:00:00]} Kb6 {[%emt 0:00:30]} 50. Rh6+ {[%emt 0:00:00]} Kc7 {[%emt 0:00:00]} 51. Kb5 {[%emt 0:00:00]} Rg7 {[%emt 0:00:38]} 52. c5 {[%emt 0:03:00]} Kb7 {[%emt 0:00:58]} 53. Rb6+ {[%emt 0:00:00]} Ka7 {[%emt 0:03:08]} 54. Ra6+ {[%emt 0:10:55]} Kb7 {[%emt 0:00:26]} 55. Rb6+ {[%emt 0:10:36]} Kc7 {[%emt 0:00:42]} 56. Rf6 {[%emt 0:00:10]} Kb7 {[%emt 0:00:20]} 57. Ra6 {[%emt 0:00:44]} Rh7 {[%emt 0:00:22]} 58. c6+ {[%emt 0:00:43]} Kb8 {[%emt 0:00:30]} 59. Kb6 {[%emt 0:00:00]} Rb7+ {[%emt 0:00:00]} 60. Kc5 {[%emt 0:00:00]} Rh7 {[%emt 0:00:33]} 61. Ra4 {[%emt 0:01:58]} Rh1 {[%emt 0:00:54]} 62. Rd4 {[%emt 0:00:15]} Kc7 {[%emt 0:00:00]} 63. Rd7+ {[%emt 0:00:34]} Kc8 {[%emt 0:00:19]} 64. Kd4 {[%emt 0:01:01] An interesting draw.  Weighted Error Value: White=0.03 (flawless) /Black=0.04 (flawless)} 1/2-1/2

[Event "5th Baskent University Open 2022"]
[Site "Ankara"]
[Date "2022.07.06"]
[Round "7.18"]
[White "Eke, Salih"]
[Black "Cansu, Batuhan"]
[Result "1/2-1/2"]
[ECO "D85"]
[WhiteElo "2195"]
[BlackElo "2083"]
[Annotator "TA"]
[PlyCount "102"]
[EventDate "2022.07.02"]
[EventType "swiss"]
[EventCountry "TUR"]
[SourceTitle "playchess.com"]
[Source "ChessBase"]
[SourceQuality "1"]
[TimeControl "5400+30"]

{[%evp 26,102,13,24,45,36,38,17,14,12,33,10,47,47,47,36,70,50,107,68,69,68,72,69,76,19,26,21,37,0,27,16,35,0,0,0,0,0,0,0,0,0,0,0,0,0,0,0,0,0,0,0,0,0,0,0,0,0,0,0,0,0,0,0,0,0,0,0,0,0,0,0,0,0,0,0,0,0,0]} 1. d4 {[%emt 0:03:00]} Nf6 {[%emt 0:01:00]} 2. c4 {[%emt 0:00:30]} g6 {[%emt 0:00:30]} 3. Nf3 {[%emt 0:00:00]} Bg7 {[%emt 0:00:00]} 4. Nc3 {[%emt 0:02:00]} d5 {[%emt 0:00:00]} 5. cxd5 {[%emt 0:00:30]} Nxd5 {[%emt 0:00:00]} 6. e4 {[%emt 0:00:30]} Nxc3 {[%emt 0:00:00]} 7. bxc3 {[%emt 0:00:30]} c5 {[%emt 0:00:00]} 8. Be2 {[%emt 0:06:30]} O-O {[%emt 0:03:00]} 9. Rb1 {[%emt 0:00:30]} cxd4 {[%emt 0:04:30]} 10. cxd4 {[%emt 0:00:30]} Qa5+ {[%emt 0:00:30]} 11. Bd2 {[%emt 0:00:30]} Qxa2 {[%emt 0:00:00]} 12. O-O {[%emt 0:00:00]} Bg4 {[%emt 0:01:00]} 13. Bg5 {[%emt 0:04:00]} h6 {[%emt 0:06:30]} 14. Be3 {[%emt 0:00:00]} Nd7 {[%emt 0:08:30] D85: Exchange Grünfeld: Unusual White 7th moves and lines with 7 Nf3.} 15. Rxb7 {[%emt 0:02:00]} Rfb8 {[%emt 0:00:30]} 16. Rxb8+ {[%emt 0:09:30]} (16. Rc7 $5 {[%cal Rh2h3]}) 16... Rxb8 {[%emt 0:00:30]} 17. h3 {[%emt 0:00:30]} Bxf3 {[%emt 0:00:30]} 18. Bxf3 {[%emt 0:00:00] [#]} Nb6 $146 {[%emt 0:11:30]} ({Predecessor:} 18... a5 19. Qc1 Qb3 20. Qc7 Qb5 21. e5 Rb6 22. d5 Rb8 23. d6 Nxe5 24. d7 Nxd7 25. Bc6 Be5 26. Bxb5 {1-0 (26) Miller,D (2017)-Anilkumar,A (1903) Hull 2018}) 19. Qb1 {[%emt 0:04:00]} Qa4 {[%emt 0:08:30]} 20. Be2 {[%emt 0:04:30]} Qd7 {[%emt 0:04:30]} 21. d5 {[%emt 0:01:30]} h5 {[%emt 0:10:30]} (21... Qa4 $14) 22. Rc1 {[%emt 0:08:30]} Rc8 {[%emt 0:03:30]} 23. Rxc8+ {[%emt 0:03:30]} Qxc8 {[%emt 0:00:00]} 24. Qb4 {[%emt 0:00:00]} Qc7 {[%emt 0:02:00]} 25. g4 {[%emt 0:06:00]} ({White should try} 25. f4 $16) 25... hxg4 $11 {[%emt 0:00:30]} 26. hxg4 {[%emt 0:00:30]} Be5 {[%emt 0:02:30]} 27. Qb5 {[%emt 0:04:30]} Kg7 {[%emt 0:01:30]} 28. Kg2 {[%emt 0:00:30]} Bf4 {[%emt 0:03:30]} 29. Qb2+ {[%emt 0:03:30]} f6 {[%emt 0:03:30] The position is equal.} 30. Bd4 {[%emt 0:00:30]} Be5 {[%emt 0:01:30]} 31. g5 {[%emt 0:00:30]} Bxd4 {[%emt 0:05:30]} 32. Qxd4 {[%emt 0:00:30][%mdl 4096] Endgame KQB-KQN} Qe5 {[%emt 0:00:30]} 33. gxf6+ {[%emt 0:04:30]} exf6 {[%emt 0:00:00]} 34. Qe3 {[%emt 0:00:30]} f5 {[%emt 0:02:25]} 35. Qa3 {[%emt 0:02:30]} Nxd5 {[%emt 0:06:00]} 36. exd5 {[%emt 0:01:30]} Qxe2 {[%emt 0:00:01]} 37. Qxa7+ {[%emt 0:00:00] KQ-KQ} Kf6 {[%emt 0:05:17]} 38. Qb6+ {[%emt 0:00:00]} Kf7 {[%emt 0:00:09]} 39. Qc7+ {[%emt 0:02:30]} Kf6 {[%emt 0:00:06]} 40. Qb6+ {[%emt 0:01:30]} Kf7 {[%emt 0:00:06]} 41. Qc7+ {[%emt 0:08:30]} Kf6 {[%emt 0:00:09]} 42. Qd8+ {[%emt 0:00:30]} Kf7 {[%emt 0:00:18]} 43. Qd7+ {[%emt 0:00:44]} Kf6 {[%emt 0:00:02]} 44. Qc6+ {[%emt 0:02:13]} Kf7 {[%emt 0:00:07]} 45. Qb7+ {[%emt 0:01:41]} Kf6 {[%emt 0:00:06]} 46. Qc6+ {[%emt 0:00:11]} Kf7 {[%emt 0:00:30]} 47. Qa4 {[%emt 0:00:30]} Kf6 {[%emt 0:00:30]} 48. Qd4+ {[%emt 0:00:30]} Kf7 {[%emt 0:00:30]} 49. Kg3 {[%emt 0:01:01]} g5 {[%emt 0:01:52]} 50. Qa7+ {[%emt 0:00:52]} Kg6 {[%emt 0:02:12]} 51. Qd4 {[%emt 0:01:53] Inhibits Qe5+.} Kf7 {[%emt 0:00:30] Weighted Error Value: White=0.07 (flawless) /Black=0.06 (flawless)} 1/2-1/2

[Event "5th Baskent University Open 2022"]
[Site "Ankara"]
[Date "2022.07.06"]
[Round "7.19"]
[White "Cevizci, Yusuf Baran"]
[Black "Primbetov, Marat"]
[Result "0-1"]
[ECO "B22"]
[WhiteElo "2144"]
[BlackElo "2186"]
[Annotator "TA"]
[PlyCount "112"]
[EventDate "2022.07.02"]
[EventType "swiss"]
[EventCountry "TUR"]
[SourceTitle "playchess.com"]
[Source "ChessBase"]
[SourceQuality "1"]
[TimeControl "5400+30"]

{[%evp 15,112,7,36,25,41,0,23,0,0,0,8,0,170,158,123,90,73,55,121,50,88,85,179,179,168,71,84,102,158,0,0,0,0,0,0,0,0,-85,-92,-85,-100,-110,-90,-164,-164,-164,-164,-203,-203,-222,-219,-216,-215,-288,-240,-248,-87,-112,0,-95,0,0,0,0,0,-94,-76,-125,-129,-247,-54,-80,-66,-489,-482,-691,-630,-1054,-897,-1300,-1226,-1409,-985,-956,-828,-933,-788,-1325,-1149,-1712,-1722,-1653,-1601,-1403,-1363,-1459,-1314,-1247,-1062]} 1. e4 {[%emt 0:01:00][%cal Be2e4,Be4e5][%mdl 32]} c5 {[%emt 0:06:00]} 2. c3 {[%emt 0:00:00]} Nf6 {[%emt 0:00:30]} 3. e5 {[%emt 0:00:00]} Nd5 {[%emt 0:00:00]} 4. Nf3 {[%emt 0:00:30]} Nc6 {[%emt 0:00:00]} 5. d4 {[%emt 0:00:30]} cxd4 {[%emt 0:00:30]} 6. cxd4 {[%emt 0:00:00]} d6 {[%emt 0:02:30]} 7. Bc4 {[%emt 0:00:00]} Nb6 {[%emt 0:09:30] 7...dxe5 is the hot move.} 8. Bb5 {[%emt 0:01:30]} d5 {[%emt 0:02:30]} 9. a4 {[%emt 0:00:30][%cal Ba2a4,Ba4a5][%mdl 32] [#] B22: Sicilian: 2 c3.} e6 $146 {[%emt 0:16:30]} ({Predecessor:} 9... Bf5 10. a5 Nd7 11. a6 Qb6 12. axb7 Qxb7 13. Qa4 Rc8 14. Ba6 Qb4+ 15. Nc3 Qxa4 16. Rxa4 Rb8 {1-0 (33) Mammadov,Z (2417)-Koc,P (2346) Chess.com INT 2020}) 10. a5 {[%emt 0:01:30]} Nd7 {[%emt 0:00:00]} 11. a6 {[%emt 0:00:00] White has an edge.} Qb6 {[%emt 0:01:00][%csl LRa6,LRb5]} 12. Qa4 {[%emt 0:01:00]} Ncb8 {[%emt 0:02:30]} (12... Bb4+ 13. Bd2 Bxd2+ 14. Nbxd2 $14) 13. O-O {[%emt 0:04:30]} Nxa6 $2 {[%emt 0:03:30]} (13... bxa6 $11 14. Bd3 Nc6) 14. Bd2 $1 $18 {[%emt 0:00:30]} Nc7 {[%emt 0:06:30]} 15. Bd3 {[%emt 0:00:30][%mdl 1024] White has strong compensation.} Qc6 {[%emt 0:00:30]} 16. Qb3 {[%emt 0:00:30]} Qb6 {[%emt 0:04:30]} (16... Nb8 $1 $14) 17. Qa2 {[%emt 0:01:30]} (17. Qc2 $1 $16 {Threatens to win with Rc1.} Qc6 18. Nc3) 17... Bb4 {[%emt 0:00:30]} 18. Nc3 $1 {[%emt 0:00:30]} O-O {[%emt 0:02:30]} (18... a5 $16 {might work better.}) 19. Rfc1 $1 {[%emt 0:01:30] Hoping for Na4.} Na6 {[%emt 0:01:30]} 20. Qb1 {[%emt 0:01:30]} (20. Qb3 $1 $18 {is more deadly.}) 20... f5 $16 {[%emt 0:02:30]} 21. Ng5 {[%emt 0:06:30]} Ndb8 {[%emt 0:01:30] [#]} (21... Bxc3 $142 22. Bxc3 (22. bxc3 Qxb1 23. Rcxb1 Nb6 $14) (22. Rxc3 h6 $16) 22... Re8) 22. Bxf5 $1 {[%emt 0:14:30][%mdl 512]} Rxf5 $11 {[%emt 0:11:30]} (22... exf5 $2 23. Nxd5 Qg6 24. Bxb4 Qxg5 25. Bxf8 $18) 23. Nxd5 $1 {[%emt 0:00:00] Threatening mate with Qxf5.} Qd8 {[%emt 0:00:30]} 24. Nxb4 {[%emt 0:01:00]} Nxb4 {[%emt 0:00:30]} 25. Bxb4 {[%emt 0:00:30][%cal Ob4a5]} (25. g4 Rxg5 26. Bxg5 Qe8 $17) 25... Nc6 $36 {[%emt 0:02:30][%mdl 2048] Inhibits Ba5. Black fights for an advantage.} (25... Rxg5 26. Be7 $1 {[%mdl 512]} Rxg2+ 27. Kxg2 Qd5+ 28. f3 $16) 26. Bd2 {[%emt 0:07:30]} (26. Rxc6 $1 $11 bxc6 27. Nf3) 26... Rxg5 $17 {[%emt 0:03:57]} 27. Bxg5 {[%emt 0:00:30]} Qxg5 {[%emt 0:00:03]} 28. Qe4 {[%emt 0:00:00]} Qd8 {[%emt 0:00:30]} 29. Rd1 {[%emt 0:11:00]} (29. Ra3 $17) 29... Ne7 $19 {[%emt 0:02:01]} 30. Ra3 {[%emt 0:00:30]} Qd5 {[%emt 0:01:36]} 31. Qg4 {[%emt 0:01:30] [#]} Bd7 $1 {[%emt 0:00:35]} 32. Rc1 {[%emt 0:02:30]} Bc6 {[%emt 0:02:45]} 33. Rc5 {[%emt 0:01:30]} Qd7 {[%emt 0:00:21]} 34. b4 {[%emt 0:04:30]} (34. Rg3 Ng6 35. Ra5 b6) 34... b6 {[%emt 0:06:55]} 35. Rc1 {[%emt 0:00:30]} Nf5 {[%emt 0:00:18] Prevents Rg3.} (35... Nd5 $19 {and Black stays clearly on top.} 36. Rg3 Bb5) 36. Rac3 $17 {[%emt 0:00:30]} Rc8 {[%emt 0:02:06]} (36... Nxd4 $2 37. Rd1 $18) (36... Bb7 $17 37. h3 (37. Rc7 Rc8 $17) 37... Qe8) 37. h3 {[%emt 0:02:30]} (37. b5 $1 $11 {remains equal.} Bb7 38. Rxc8+ Bxc8 39. d5 exd5 40. h3) 37... Bb7 {[%emt 0:00:22]} ({But not} 37... Nxd4 38. Rd3 Bxg2 39. Rxc8+ Qxc8 40. Kxg2 $16 (40. Qxg2 Ne2+ 41. Kh2 Nf4 $17) (40. Rxd4 Bd5 $14)) (37... Ne7 $17 {White must now prevent ...Nd5.} 38. b5 Bd5) 38. Rxc8+ $11 {[%emt 0:00:30]} Bxc8 {[%emt 0:00:00]} 39. d5 $1 {[%emt 0:01:30]} exd5 {[%emt 0:01:15]} 40. Qf4 {[%emt 0:01:30]} (40. b5 $1 $11) 40... h6 $17 {[%emt 0:02:23]} 41. g4 {[%emt 0:01:30]} ({White should try} 41. b5) 41... Ne7 {[%emt 0:00:26]} 42. Rc3 {[%emt 0:02:30]} (42. b5 $17) 42... Qe6 $2 {[%emt 0:00:34]} ({Black should play} 42... Ba6 $19 {aiming for ...Bc4.} 43. Rf3 Ng6) 43. b5 {[%emt 0:01:30]} Bd7 {[%emt 0:00:38]} 44. Qg3 $2 {[%emt 0:01:30][%mdl 8192]} (44. Rc7 $15) 44... Bxb5 $19 {[%emt 0:01:18] ...d4 is the strong threat. Black is clearly winning.} 45. f4 {[%emt 0:00:30]} (45. Rc7 $142 a6 46. h4) 45... d4 {[%emt 0:00:00][%cal Bd5d4,Bd4d3][%mdl 32]} 46. Rc2 {[%emt 0:02:30]} d3 {[%emt 0:00:21]} 47. Rd2 {[%emt 0:00:30]} Qc4 {[%emt 0:00:28] ( -> ...Qc1+)} 48. Kh2 {[%emt 0:00:30]} Qc1 {[%emt 0:00:50]} 49. Qf2 {[%emt 0:00:30]} Qc5 {[%emt 0:02:07]} 50. Qg3 {[%emt 0:00:30]} Ng6 {[%emt 0:00:30] Strongly threatening ...Qb4.} 51. e6 {[%emt 0:00:30]} Qb4 {[%emt 0:00:30]} 52. Qe3 {[%emt 0:00:30]} Qxf4+ {[%emt 0:00:30]} 53. Qxf4 {[%emt 0:00:30]} Nxf4 {[%emt 0:00:30]} 54. e7 {[%emt 0:00:30]} Kf7 {[%emt 0:00:30]} 55. Kg3 {[%emt 0:00:30]} Nd5 {[%emt 0:00:09]} 56. Rb2 {[%emt 0:00:30]} a6 {[%emt 0:00:35] A wild game.  Weighted Error Value: White=0.68/Black=0.46} 0-1